Workbook

Sheet Лист1
A1: Школа | C1: МБОУ "СОШ №2 г.Азнакаево | F1: Утвердил: | G1: должность | H1: Директор школы
A2: Типовое примерное меню приготавливаемых блюд | G2: фамилия | H2: Сулейманова Р.Р.
A3: Возрастная категория | E3: 7-11 лет | G3: дата | H3: 2 | I3: 6 | J3: 2025
H4: день | I4: месяц | J4: год
A5: Неделя | B5: День недели | C5: Прием пищи | D5: Раздел меню | E5: Блюда | F5: Вес блюда, г | G5: Белки | H5: Жиры | I5: Углеводы | J5: Калорийность | K5: № рецептуры | L5: Цена
A6: 1 | B6: 1 | C6: Завтрак | D6: гор.блюдо | E6: Каша кукурузная молочная с маслом сливочным | F6: 154 | G6: 5,69 | H6: 5,78 | I6: 38,04 | J6: 227,40 | L6: 220,56
E7: Сырники творожные с молоком сгущенным | F7: 80 | G7: 12,78 | H7: 8,76 | I7: 18,61 | J7: 204,40
D8: гор.напиток | E8: Чай с молоком, с сахаром | F8: 200 | G8: 1,46 | H8: 1,08 | I8: 11,96 | J8: 63,70
D9: хлеб | E9: Бутерброд с маслом | F9: 40 | G9: 2,33 | H9: 8,12 | I9: 15,55 | J9: 144,60
D10: фрукты | E10: Фрукты свежие (яблоки) | F10: 120 | G10: 0,48 | H10: 0,48 | I10: 11,76 | J10: 56,40
E11: Батон | F11: 30 | G11: 2,25 | H11: 0,87 | I11: 15,42 | J11: 78,60
D13: итого | F13: =F6+F7+F8+F9+F10+F11 -> 624 | G13: =G6+G7+G8+G9+G10+G11 -> 24.99 | H13: =H6+H7+H8+H9+H10+H11 -> 25.09 | I13: =I7+I8+I9+I10+I11 -> 73.3 | J13: =J7+J8+J9+J10+J11 -> 547.7 | L13: =L6+L7 -> 220.56
A14: =A6 -> 1 | B14: =B6 -> 1 | C14: Обед | D14: закуска | E14: Помидоры свежие порционно | F14: 60 | G14: 0.66 | H14: 0.12 | I14: 2.28 | J14: 14.4
D15: 1 блюдо | E15: Щи из свежей капусты с картофелем, со сметаной | F15: 210 | G15: 3.47 | H15: 5.46 | I15: 21.68 | J15: 88
D16: гарнир | E16: Жаркое по-домашнему с куриной грудкой | F16: 200 | G16: 16.83 | H16: 28.73 | I16: 41.77 | J16: 496
D17: 3 блюдо | E17: Нектар плодовый (разливной) | F17: 180 | G17: 0.9 | H17: 0 | I17: 18.18 | J17: 76
D18: хлеб | E18: Хлеб ржаной | F18: 50 | G18: 3.3 | H18: 0.6 | I18: 19.8 | J18: 99
D19: хлеб | E19: Хлеб пшеничный | F19: 40 | G19: 3.04 | H19: 0.32 | I19: 19.68 | J19: 94
E20: Вода питьевая | F20: 500 | G20: 0 | H20: 0 | I20: 0 | J20: 0
D23: итого | F23: =SUM(F14:F22) -> 1240 | G23: =SUM(G14:G22) -> 28.2 | H23: 35.23 | I23: 123.39 | J23: 867.4 | L23: =SUM(L14:L22) -> 0
A24: =A6 -> 1 | B24: =B6 -> 1 | C24: Итого за день: | F24: =F13+F23 -> 1864 | G24: =G13+G23 -> 53.19 | H24: 60.32 | I24: 196.69 | J24: 1415.1 | L24: =L13+L23 -> 220.56
A25: 1 | B25: 2 | C25: Завтрак | D25: гор.блюдо | E25: Каша геркулесовая молочная с маслом сливочным | F25: 185 | G25: 4.05 | H25: 5.91 | I25: 48.82 | J25: 186.73 | L25: 220.56
E26: Яйцо отварное | F26: 50 | G26: 6.35 | H26: 5.75 | I26: 0.35 | J26: 78.75
D27: гор.напиток | E27: Какао с молоком | F27: 200 | G27: 4.08 | H27: 3.81 | I27: 7.6 | J27: 78.6
D28: хлеб | E28: Батон высший сорт | F28: 30 | G28: 2.25 | H28: 0.87 | I28: 15.42 | J28: 78.6
E29: Бутерброд с сыром, с маслом | F29: 30/15/10 | G29: 6.28 | H29: 12.11 | I29: 15.55 | J29: 196.1
D32: итого | F32: =SUM(F25:F31) -> 465 | G32: =SUM(G25:G31) -> 23.01 | H32: =SUM(H25:H31) -> 28.45 | I32: =SUM(I25:I31) -> 87.74 | J32: =SUM(J25:J31) -> 618.78 | L32: 220.56
A33: =A25 -> 1 | B33: =B25 -> 2 | C33: Обед | D33: закуска | E33: Огурцы свежие | F33: 60 | G33: 0.48 | H33: 0.06 | I33: 1.5 | J33: 8.4
D34: 1 блюдо | E34: Суп картофельный с крупой на бульоне из индейки | F34: 200 | G34: 1.58 | H34: 2.47 | I34: 11.69 | J34: 68.6
D35: 2 блюдо | E35: Гуляш из отварной индейки | F35: 100 | G35: 13.44 | H35: 23.88 | I35: 16.46 | J35: 346.95
D36: гарнир | E36: Макаронные изделия отварные с маслом сливочным | F36: 152 | G36: 5.67 | H36: 2.12 | I36: 31.95 | J36: 162.9
D37: 3 блюдо | E37: Компот из сухофруктов | F37: 200 | G37: 0.66 | H37: 0.09 | I37: 22.03 | J37: 92.8
D38: хлеб | E38: Хлеб ржаной | F38: 50 | G38: 3.3 | H38: 0.6 | I38: 19.8 | J38: 99
D39: хлеб | E39: Хлеб пшеничный | F39: 40 | G39: 3.04 | H39: 0.32 | I39: 19.68 | J39: 94
E40: Вода питьевая ПЭТ | F40: 500 | G40: 0 | H40: 0 | I40: 0 | J40: 0
D42: итого | F42: =SUM(F33:F41) -> 1302 | G42: =SUM(G33:G41) -> 28.17 | H42: =SUM(H33:H41) -> 29.54 | I42: =SUM(I33:I41) -> 123.11 | J42: =SUM(J33:J41) -> 872.65 | L42: 0
A43: =A25 -> 1 | B43: =B25 -> 2 | C43: Итого за день: | F43: =F32+F42 -> 1767 | G43: =G32+G42 -> 51.18 | H43: =H32+H42 -> 57.99 | I43: =I32+I42 -> 210.85 | J43: =J32+J42 -> 1491.43 | L43: 220.56
A44: 1 | B44: 3 | C44: Завтрак | D44: гор.блюдо | E44: Каша пшеничная молочная с маслом сливочным | F44: 183 | G44: 6.82 | H44: 5.63 | I44: 45.62 | J44: 261 | L44: 220.56
E45: Бутерброд с маслом | F45: 40 | G45: 2.33 | H45: 8.12 | I45: 15.55 | J45: 144.6
D46: гор.напиток | E46: Чай с сахаром | F46: 200 | G46: 0.38 | H46: 0.1 | I46: 10.06 | J46: 42.66
D47: хлеб | E47: Батон высший сорт | F47: 30 | G47: 2.25 | H47: 0.87 | I47: 15.42 | J47: 78.6
E48: Блины с маслом сливочным | F48: 50 | G48: 2.3 | H48: 5.28 | I48: 13.17 | J48: 109.05
D49: фрукты | E49: Фрукты свежие (яблоки) | F49: 120 | G49: 0.48 | H49: 0.48 | I49: 11.76 | J49: 56.4
D51: итого | F51: =SUM(F44:F50) -> 623 | G51: =SUM(G44:G50) -> 14.56 | H51: =SUM(H44:H50) -> 20.48 | I51: =SUM(I44:I50) -> 111.58 | J51: =SUM(J44:J50) -> 692.31 | L51: 220.56
A52: =A44 -> 1 | B52: =B44 -> 3 | C52: Обед | D52: закуска | E52: Огурцы свежие | F52: 60 | G52: 0.48 | H52: 0.06 | I52: 1.5 | J52: 8.4
D53: 1 блюдо | E53: Рассольник ленинградский с мясными фрикадельками, со сметаной | F53: 221 | G53: 4.07 | H53: 7.16 | I53: 10.03 | J53: 123.57
D54: 2 блюдо | E54: Рыба тушеная с овощами | F54: 120 | G54: 14.03 | H54: 14.62 | I54: 19.04 | J54: 250.33
D55: доп.гарнир | E55: Пюре картофельное с капустой тушеной (доп.гарнир) | F55: 180 | G55: 3.68 | H55: 5.91 | I55: 32.81 | J55: 213.35
D56: 3 блюдо | E56: Напиток из шиповника | F56: 200 | G56: 0.68 | H56: 0.28 | I56: 20.76 | J56: 88.2
D57: хлеб | E57: Хлеб ржаной | F57: 50 | G57: 3.3 | H57: 0.6 | I57: 19.8 | J57: 99
D58: хлеб | E58: Хлеб пшеничный | F58: 40 | G58: 3.04 | H58: 0.32 | I58: 19.68 | J58: 94
E59: Вода питьевая ПЭТ | F59: 500 | G59: 0 | H59: 0 | I59: 0 | J59: 0
D61: итого | F61: =SUM(F52:F60) -> 1371 | G61: =SUM(G52:G60) -> 29.28 | H61: =SUM(H52:H60) -> 28.95 | I61: =SUM(I52:I60) -> 123.62 | J61: =SUM(J52:J60) -> 876.85 | L61: 0
A62: =A44 -> 1 | B62: =B44 -> 3 | C62: Итого за день: | F62: =F51+F61 -> 1994 | G62: =G51+G61 -> 43.84 | H62: =H51+H61 -> 49.43 | I62: =I51+I61 -> 235.2 | J62: =J51+J61 -> 1569.16 | L62: 220.56
A63: 1 | B63: 4 | C63: Завтрак | D63: гор.блюдо | E63: Каша "Дружба" молочная с маслом сливочным | F63: 153 | G63: 4.46 | H63: 2.18 | I63: 32.43 | J63: 145.05 | L63: 220.56
E64: Бутерброд с сыром , с маслом | F64: 55 | G64: 6.28 | H64: 12.11 | I64: 15.55 | J64: 196.1
D65: гор.напиток | E65: Кофейный напиток с молоком | F65: 200 | G65: 3.17 | H65: 2.68 | I65: 5.97 | J65: 60.6
D66: хлеб | E66: Батон высший сорт | F66: 30 | G66: 2.25 | H66: 0.87 | I66: 15.42 | J66: 78.6
D67: фрукты | E67: Запеканка из творога с повидлом | F67: 105 | G67: 13.11 | H67: 11.55 | I67: 31.86 | J67: 280.5
D70: итого | F70: =SUM(F63:F69) -> 543 | G70: =SUM(G63:G69) -> 29.27 | H70: =SUM(H63:H69) -> 29.39 | I70: =SUM(I63:I69) -> 101.23 | J70: =SUM(J63:J69) -> 760.85 | L70: 220.56
A71: =A63 -> 1 | B71: =B63 -> 4 | C71: Обед | D71: закуска | E71: Помидоры свежие порционно | F71: 60 | G71: 0.66 | H71: 0.12 | I71: 2.28 | J71: 14.4
D72: 1 блюдо | E72: Суп-лапша домашняя на курином бульоне, с мясом птицы | F72: 210 | G72: 4.39 | H72: 6.29 | I72: 9.33 | J72: 118.8
D73: гаринир | E73: Овощи тущеные с говяжьим фаршем | F73: 200 | G73: 15.88 | H73: 21.63 | I73: 53.88 | J73: 457.45
D74: 3 блюдо | E74: Нектар плодовый (разливной) | F74: 180 | G74: 0.9 | H74: 0 | I74: 18.18 | J74: 76
D75: хлеб | E75: Хлеб ржаной | F75: 50 | G75: 3.3 | H75: 0.6 | I75: 19.8 | J75: 99
D76: хлеб | E76: Хлеб пшеничный | F76: 40 | G76: 3.04 | H76: 0.32 | I76: 19.68 | J76: 94
E77: Вода питьевая ПЭТ | F77: 500 | G77: 0 | H77: 0 | I77: 0
D80: итого | F80: =SUM(F71:F79) -> 1240 | G80: =SUM(G71:G79) -> 28.17 | H80: =SUM(H71:H79) -> 28.96 | I80: =SUM(I71:I79) -> 123.15 | J80: =SUM(J71:J79) -> 859.65 | L80: 0
A81: =A63 -> 1 | B81: =B63 -> 4 | C81: Итого за день: | F81: =F70+F80 -> 1783 | G81: =G70+G80 -> 57.44 | H81: =H70+H80 -> 58.35 | I81: =I70+I80 -> 224.38 | J81: =J70+J80 -> 1620.5 | L81: 220.56
A82: 1 | B82: 5 | C82: Завтрак | D82: гор.блюдо | E82: Каша полбяная молочная с маслом сливочным | F82: 154 | G82: 7.6 | H82: 5.63 | I82: 38.75 | J82: 230.69 | L82: 220.56
E83: Бутерброд с маслом | F83: 40 | G83: 2.33 | H83: 8.12 | I83: 15.55 | J83: 144.6
D84: гор.напиток | E84: Чай с молоком, с сахаром | F84: 200 | G84: 1.46 | H84: 1.08 | I84: 11.96 | J84: 63.7
D85: хлеб | E85: Батон высший сорт | F85: 30 | G85: 2.25 | H85: 0.87 | I85: 15.42 | J85: 78.6
E86: Омлет натуральный | F86: 75 | G86: 6.97 | H86: 12.41 | I86: 1.32 | J86: 144.83
D87: фрукты | E87: Фрукты свежие (яблоки) | F87: 120 | G87: 0.48 | H87: 0.48 | I87: 11.76 | J87: 56.4
D89: итого | F89: =SUM(F82:F88) -> 619 | G89: =SUM(G82:G88) -> 21.09 | H89: =SUM(H82:H88) -> 28.59 | I89: =SUM(I82:I88) -> 94.76 | J89: =SUM(J82:J88) -> 718.82 | L89: 220.56
A90: =A82 -> 1 | B90: =B82 -> 5 | C90: Обед | D90: закуска | E90: Салат из отварной свеклы с маслом | F90: 60 | G90: 0.84 | H90: 3.61 | I90: 4.96 | J90: 55.68
D91: 1 блюдо | E91: Суп картофельный с мясными фрикадельками | F91: 211 | G91: 4.07 | H91: 7.55 | I91: 13.58 | J91: 112.77
D92: 2 блюдо | E92: Биточки рыбные из минтая | F92: 90 | G92: 11.63 | H92: 11.88 | I92: 14.26 | J92: 207.43
D93: гарнир | E93: Макаронные изделия отварные с маслом сливочным | F93: 153 | G93: 5.68 | H93: 2.84 | I93: 31.96 | J93: 176.06
D94: 3 блюдо | E94: Компот из свежих яблок | F94: 200 | G94: 0.16 | H94: 0.16 | I94: 27.88 | J94: 114.6
D95: хлеб | E95: Хлеб ржаной | F95: 50 | G95: 3.3 | H95: 0.6 | I95: 19.8 | J95: 99
D96: хлеб | E96: Хлеб пшеничный | F96: 40 | G96: 3.04 | H96: 0.32 | I96: 19.68 | J96: 94
E97: Вода питьевая ПЭТ | F97: 500 | G97: 0 | H97: 0 | I97: 0 | J97: 0
D99: итого | F99: =SUM(F90:F98) -> 1304 | G99: =SUM(G90:G98) -> 28.72 | H99: =SUM(H90:H98) -> 26.96 | I99: =SUM(I90:I98) -> 132.12 | J99: =SUM(J90:J98) -> 859.54 | L99: 0
A100: =A82 -> 1 | B100: =B82 -> 5 | C100: Итого за день: | F100: =F89+F99 -> 1923 | G100: =G89+G99 -> 49.81 | H100: =H89+H99 -> 55.55 | I100: =I89+I99 -> 226.88 | J100: =J89+J99 -> 1578.36 | L100: 220.56
A101: 1 | B101: 6 | C101: Завтрак | D101: гор.блюдо | E101: Каша ячневая молочная с маслом сливочным | F101: 154 | G101: 5.2 | H101: 5.57 | I101: 35.09 | J101: 211.4 | L101: 220.56
E102: Блины с маслом сливочным | F102: 50 | G102: 2.3 | H102: 5.28 | I102: 13.17 | J102: 109.05
D103: гор.напиток | E103: Какао с молоком | F103: 200 | G103: 4.08 | H103: 3.81 | I103: 7.6 | J103: 78.6
D104: хлеб | E104: Бутерброд с маслом | F104: 40 | G104: 2.33 | H104: 8.12 | I104: 15.55 | J104: 144.6
D105: Фрукты | E105: Фрукты свежие (яблоки) | F105: 120 | G105: 0.48 | H105: 0.48 | I105: 11.76 | J105: 56.4
E106: Батон высший сорт | F106: 30 | G106: 2.25 | H106: 0.87 | I106: 15.42 | J106: 78.6
D108: итого | F108: =SUM(F101:F107) -> 594 | G108: =SUM(G101:G107) -> 16.64 | H108: 24.13 | I108: 98.59 | J108: 678.65 | L108: =SUM(L101:L107) -> 220.56
A109: =A101 -> 1 | B109: =B101 -> 6 | C109: Обед | D109: закуска | E109: Помидоры свежие порционно | F109: 60 | G109: 0.66 | H109: 0.12 | I109: 2.28 | J109: 14.4
D110: 1 блюдо | E110: Суп из овощей на курином бульоне, со сметаной | F110: 210 | G110: 4.05 | H110: 8.03 | I110: 15.61 | J110: 152.4
D111: гарнир | E111: Плов из отварных куриных грудок | F111: 250 | G111: 18.78 | H111: 22.4 | I111: 54.98 | J111: 493.33
D112: 3 блюдо | E112: Нектар плодовый (разливной) | F112: 180 | G112: 0.9 | H112: 0 | I112: 18.18 | J112: 76
D113: хлеб | E113: Хлеб ржаной | F113: 50 | G113: 3.3 | H113: 0.6 | I113: 19.8 | J113: 99
D114: хлеб | E114: Хлеб пшеничный | F114: 40 | G114: 3.04 | H114: 0.32 | I114: 19.68 | J114: 94
E115: Вода питьевая ПЭТ | F115: 500 | G115: 0 | H115: 0 | I115: 0 | J115: 0
D118: итого | F118: =SUM(F109:F117) -> 1290 | G118: =SUM(G109:G117) -> 30.73 | H118: 31.47 | I118: 130.53 | J118: 929.13 | L118: =SUM(L109:L117) -> 0
A119: =A101 -> 1 | B119: =B101 -> 6 | C119: Итого за день: | F119: =F108+F118 -> 1884 | G119: =G108+G118 -> 47.37 | H119: 55.6 | I119: 229.12 | J119: 1607.78 | L119: =L108+L118 -> 220.56
A120: 2 | B120: 1 | C120: Завтрак | D120: гор.блюдо | E120: Каша пшенная молочная с маслом сливочным | F120: 154 | G120: 5.34 | H120: 6.1 | I120: 33.56 | J120: 210.69 | L120: 220.56
E121: Сырники творожные с молоком сгущенным | F121: 80 | G121: 12.71 | H121: 10.76 | I121: 18.3 | J121: 221.2
D122: гор.напиток | E122: Чай с сахаром с лимоном | F122: 200 | G122: 0.13 | H122: 0.02 | I122: 10.2 | J122: 42
D123: хлеб | E123: Бутерброд с сыром, с маслом | F123: 55 | G123: 6.28 | H123: 12.11 | I123: 15.55 | J123: 196.1
D124: фрукты | E124: Батон высший сорт | F124: 30 | G124: 2.25 | H124: 0.87 | I124: 15.42 | J124: 78.6
D127: итого | F127: =SUM(F120:F126) -> 519 | G127: =SUM(G120:G126) -> 26.71 | H127: 29.86 | I127: 93.03 | J127: 748.59 | L127: =SUM(L120:L126) -> 220.56
A128: =A120 -> 2 | B128: =B120 -> 1 | C128: Обед | E128: Огурцы соленые (доп.гарнир) | F128: 30 | G128: 0.24 | H128: 0.03 | I128: 0.51 | J128: 3
D129: 1 блюдо | E129: Суп гороховый с мясными фрикадельками и гренками | F129: 221 | G129: 7.83 | H129: 5.66 | I129: 20.92 | J129: 176.99
D130: 2 блюдо | E130: Котлета из говядины с маслом сливочным | F130: 93 | G130: 15.19 | H130: 14 | I130: 14.84 | J130: 220.3
D131: гарнир | E131: Картофель запеченный дольками | F131: 180 | G131: 4.9 | H131: 10.58 | I131: 37.94 | J131: 273.6
D132: 3 блюдо | E132: Компот из сухофруктов | F132: 200 | G132: 0.66 | H132: 0.09 | I132: 22.03 | J132: 92.8
D133: хлеб | E133: Хлеб ржаной | F133: 50 | G133: 3.3 | H133: 0.6 | I133: 19.8 | J133: 99
D134: хлеб | E134: Хлеб пшеничный | F134: 40 | G134: 3.04 | H134: 0.32 | I134: 19.68 | J134: 94
E135: Вода питьевая ПЭТ | F135: 500 | G135: 0 | H135: 0 | I135: 0 | J135: 0
D137: итого | F137: =SUM(F128:F136) -> 1314 | G137: =SUM(G128:G136) -> 35.16 | H137: 31.28 | I137: 135.72 | J137: 959.69 | L137: =SUM(L128:L136) -> 0
A138: =A120 -> 2 | B138: =B120 -> 1 | C138: Итого за день: | F138: =F127+F137 -> 1833 | G138: =G127+G137 -> 61.87 | H138: =H127+H137 -> 61.14 | I138: =I127+I137 -> 228.75 | J138: =J127+J137 -> 1708.28 | L138: 220.56
A139: 2 | B139: 2 | C139: Завтрак | D139: гор.блюдо | E139: Каша пшеничная молочная с маслом сливочным | F139: 193 | G139: 7.18 | H139: 5.07 | I139: 23.69 | J139: 161.3 | L139: 220.56
E140: Яйцо отварное | F140: 50 | G140: 6.35 | H140: 5.75 | I140: 0.35 | J140: 78.75
D141: гор.напиток | E141: Кофейный напиток с молоком | F141: 200 | G141: 3.17 | H141: 2.68 | I141: 5.97 | J141: 60.6
D142: хлеб | E142: Бутерброд с маслом | F142: 40 | G142: 2.33 | H142: 8.12 | I142: 15.55 | J142: 144.6
D143: Фрукты | E143: Фрукты свежие (яблоки) | F143: 120 | G143: 0.48 | H143: 0.48 | I143: 11.76 | J143: 56.4
E144: Батон | F144: 30 | G144: 2.25 | H144: 0.87 | I144: 15.42 | J144: 78.6
D146: итого | F146: =SUM(F139:F145) -> 633 | G146: =SUM(G139:G145) -> 21.76 | H146: 22.97 | I146: 72.74 | J146: 580.25 | L146: =SUM(L139:L145) -> 220.56
A147: =A139 -> 2 | B147: =B139 -> 2 | C147: Обед | D147: закуска | E147: Салат из зеленого горошка к/с | F147: 60 | G147: 1.79 | H147: 3.11 | I147: 3.75 | J147: 50.16
D148: 1 блюдо | E148: Суп крестьянский с пшенной крупой | F148: 200 | G148: 3.58 | H148: 10.34 | I148: 4.87 | J148: 125
D149: гарнир | E149: Филе куриной грудки тушеное с овощами | F149: 200 | G149: 16.35 | H149: 14.92 | I149: 57.1 | J149: 435.5
D150: 3 блюдо | E150: Компот из свежих фруктов | F150: 200 | G150: 0.16 | H150: 0.12 | I150: 18.1 | J150: 74.6
D151: хлеб | E151: Хлеб ржаной | F151: 50 | G151: 3.3 | H151: 0.6 | I151: 19.8 | J151: 99
D152: хлеб | E152: Хлеб пшеничный | F152: 40 | G152: 3.04 | H152: 0.32 | I152: 19.68 | J152: 94
E153: Вода питьевая ПЭТ | F153: 500 | G153: 0 | H153: 0 | I153: 0 | J153: 0
D156: итого | F156: =SUM(F147:F155) -> 1250 | G156: =SUM(G147:G155) -> 28.22 | H156: 29.41 | I156: 123.3 | J156: 878.26 | L156: =SUM(L147:L155) -> 0
A157: =A139 -> 2 | B157: =B139 -> 2 | C157: Итого за день: | F157: =F146+F156 -> 1883 | G157: =G146+G156 -> 49.98 | H157: =H146+H156 -> 52.38 | I157: =I146+I156 -> 196.04 | J157: =J146+J156 -> 1458.51 | L157: 220.56
A158: 2 | B158: 3 | C158: Завтрак | D158: гор.блюдо | E158: Каша манная молочная с маслом сливочным | F158: 183 | G158: 5.19 | H158: 5.15 | I158: 36.24 | J158: 212.66 | L158: 220.56
E159: Блины с маслом сливочным | F159: 20 | G159: 2.3 | H159: 5.18 | I159: 13.17 | J159: 109.05
D160: гор.напиток | E160: Чай с молоком, с сахаром | F160: 200 | G160: 1.46 | H160: 1.08 | I160: 11.96 | J160: 63.7
D161: хлеб | E161: Бутерброд с сыром с маслом | F161: 40 | G161: 2.33 | H161: 8.12 | I161: 15.55 | J161: 144.6
E162: Батон высший сорт | F162: 50 | G162: 3.75 | H162: 1.45 | I162: 25.7 | J162: 131
D165: итого | F165: =SUM(F158:F164) -> 493 | G165: =SUM(G158:G164) -> 15.03 | H165: 20.98 | I165: 102.62 | J165: 661.01 | L165: =SUM(L158:L164) -> 220.56
A166: =A158 -> 2 | B166: =B158 -> 3 | C166: Обед | D166: закуска | E166: Салат из свеклы с маслом растительным | F166: 60 | G166: 0.84 | H166: 3.61 | I166: 4.96 | J166: 55.68
D167: 1 блюдо | E167: Борщ из свежей капусты на курином бульоне, с мясом птицы, со сметаной | F167: 220 | G167: 5.1 | H167: 13.2 | I167: 21.14 | J167: 201.4
D168: 2 блюдо | E168: Биточки рыбные | F168: 90 | G168: 11.63 | H168: 11.88 | I168: 14.26 | J168: 207.43
D169: гарнир | E169: Картофельное пюре | F169: 180 | G169: 3.68 | H169: 5.76 | I169: 24.53 | J169: 164.7
D170: 3 блюдо | E170: Нектар плодовый (разливной) | F170: 18 | G170: 0.9 | H170: 0 | I170: 18.18 | J170: 76
D171: хлеб | E171: Хлеб ржаной | F171: 50 | G171: 3.3 | H171: 0.6 | I171: 19.8 | J171: 99
D172: хлеб | E172: Хлеб пшеничный | F172: 40 | G172: 3.04 | H172: 0.32 | I172: 19.68 | J172: 94
E173: Вода питьевая ПЭТ | F173: 500 | G173: 0 | H173: 0 | I173: 0 | J173: 0
D175: итого | F175: =SUM(F166:F174) -> 1158 | G175: =SUM(G166:G174) -> 28.49 | H175: 35.37 | I175: 122.55 | J175: 898.21 | L175: =SUM(L166:L174) -> 0
A176: =A158 -> 2 | B176: =B158 -> 3 | C176: Итого за день: | F176: =F165+F175 -> 1651 | G176: =G165+G175 -> 43.52 | H176: =H165+H175 -> 56.35 | I176: =I165+I175 -> 225.17 | J176: =J165+J175 -> 1559.22 | L176: 220.56
A177: 2 | B177: 4 | C177: Завтрак | D177: гор.блюдо
D179: гор.напиток
D180: хлеб
D181: фрукты
D184: итого | F184: =SUM(F177:F183) -> 0 | G184: =SUM(G177:G183) -> 0 | H184: 0 | I184: 0 | J184: 0 | L184: =SUM(L177:L183) -> 0
A185: =A177 -> 2 | B185: =B177 -> 4 | C185: Обед | D185: закуска
D186: 1 блюдо
D187: 2 блюдо
D188: гарнир
D189: напиток
D190: хлеб бел.
D191: хлеб черн.
D194: итого | F194: =SUM(F185:F193) -> 0 | G194: =SUM(G185:G193) -> 0 | H194: 0 | I194: 0 | J194: 0 | L194: =SUM(L185:L193) -> 0
A195: =A177 -> 2 | B195: =B177 -> 4 | C195: Итого за день: | F195: =F184+F194 -> 0 | G195: =G184+G194 -> 0 | H195: =H184+H194 -> 0 | I195: =I184+I194 -> 0 | J195: =J184+J194 -> 0 | L195: 0
A196: 2 | B196: 5 | C196: Завтрак | D196: гор.блюдо | E196: Каша пшенная молочная с маслом сливочным | F196: 153 | G196: 5.33 | H196: 5.37 | I196: 33.54 | J196: 204.09 | L196: 220.56
E197: Пудинг из творога с повидлом | F197: 105 | G197: 11.49 | H197: 10.58 | I197: 39.26 | J197: 298.5
D198: гор.напиток | E198: Какао с молоком | F198: 200 | G198: 4.08 | H198: 3.81 | I198: 7.6 | J198: 78.6
D199: хлеб | E199: Бутерброд с маслом | F199: 40 | G199: 2.33 | H199: 8.12 | I199: 15.55 | J199: 144.6
D200: Фрукты | E200: Фрукты свежие (яблоки) | F200: 120 | G200: 0.48 | H200: 0.48 | I200: 11.76 | J200: 56.4
E201: Батон высший сорт | F201: 30 | G201: 2.25 | H201: 0.87 | I201: 15.42 | J201: 78.6
D203: итого | F203: =SUM(F196:F202) -> 648 | G203: =SUM(G196:G202) -> 25.96 | H203: 29.23 | I203: 123.13 | J203: 860.79 | L203: =SUM(L196:L202) -> 220.56
A204: =A196 -> 2 | B204: =B196 -> 5 | C204: Обед | D204: закуска | E204: Огурцы свежие | F204: 60 | G204: 0.48 | H204: 0.06 | I204: 1.5 | J204: 8.4
D205: 1 блюдо | E205: Рассольник ленинградский на мясном бульоне, со сметаной | F205: 210 | G205: 1.87 | H205: 11.57 | I205: 16.94 | J205: 182
D206: гарнир | E206: Макаронные изделия (спагетти) отварные с маслом сливочным | F206: 155 | G206: 5.7 | H206: 4.3 | I206: 31.99 | J206: 189.3
D207: 2 блюдо | E207: Бефстроганов из отварной говядины | F207: 140 | G207: 14.44 | H207: 12.25 | I207: 3.78 | J207: 181
D208: 3 блюдо | E208: Компот из изюма и яблок | F208: 200 | G208: 0.35 | H208: 0.08 | I208: 31.85 | J208: 130.2
D209: хлеб | E209: Хлеб ржаной | F209: 50 | G209: 3.3 | H209: 0.6 | I209: 19.8 | J209: 99
D210: хлеб | E210: Хлеб пшеничный | F210: 40 | G210: 3.04 | H210: 0.32 | I210: 19.68 | J210: 94
E211: Вода питьевая ПЭТ | F211: 500 | G211: 0 | H211: 0 | I211: 0 | J211: 0
D213: итого | F213: =SUM(F204:F212) -> 1355 | G213: =SUM(G204:G212) -> 29.18 | H213: 29.18 | I213: 125.54 | J213: 883.9 | L213: =SUM(L204:L212) -> 0
A214: =A196 -> 2 | B214: =B196 -> 5 | C214: Итого за день: | F214: =F203+F213 -> 2003 | G214: =G203+G213 -> 55.14 | H214: 58.41 | I214: 248.67 | J214: 1744.69 | L214: =L203+L213 -> 220.56
A215: 2 | B215: 6 | C215: Завтрак | D215: гор.блюдо | E215: Каша полбяная молочная с маслом сливочным | F215: 153 | G215: 6.14 | H215: 4.9 | I215: 38.73 | J215: 224.09 | L215: 220.56
E216: Омлет натуральный | F216: 75 | G216: 6.97 | H216: 12.41 | I216: 1.32 | J216: 144.83
D217: гор.напиток | E217: Чай с сахаром | F217: 200 | G217: 0.38 | H217: 0.1 | I217: 10.06 | J217: 42.66
D218: хлеб | E218: Бутерброд с сыром, с маслом | F218: 30/15/10 | G218: 6.28 | H218: 12.11 | I218: 15.55 | J218: 196.1
E219: Батон высший сорт | F219: 30 | G219: 2.25 | H219: 0.87 | I219: 15.42 | J219: 78.6
D222: итого | F222: =SUM(F215:F221) -> 458 | G222: =SUM(G215:G221) -> 22.02 | H222: 30.39 | I222: 81.08 | J222: 686.28 | L222: =SUM(L215:L221) -> 220.56
A223: =A215 -> 2 | B223: =B215 -> 6 | C223: Обед | D223: закуска | E223: Кукуруза к/с (доп.гарнир) | F223: 60 | G223: 1.23 | H223: 1.75 | I223: 5.87 | J223: 44.16
D224: 1 блюдо | E224: Щи из свежей капусты с картофелем, с куриными фрикадельками, со сметаной | F224: 221 | G224: 3.17 | H224: 6.91 | I224: 11.56 | J224: 110.66
D225: гарнир | E225: Рис отварной с маслом сливочным | F225: 153 | G225: 3.67 | H225: 7.55 | I225: 36.72 | J225: 229.46
D226: 2 блюдо | E226: Шницель куриный натуральный | F226: 90 | G226: 13.09 | H226: 12.24 | I226: 8.14 | J226: 194.63
D227: 3 блюдо | E227: Напиток из шиповника | F227: 200 | G227: 0.68 | H227: 0.28 | I227: 20.76 | J227: 88.2
D228: хлеб | E228: Хлеб ржаной | F228: 50 | G228: 3.3 | H228: 0.6 | I228: 19.8 | J228: 99
D229: хлеб | E229: Хлеб пшеничный | F229: 40 | G229: 3.04 | H229: 0.32 | I229: 19.68 | J229: 94
E230: Вода питьевая ПЭТ | F230: 500 | G230: 0 | H230: 0 | I230: 0 | J230: 0
D232: итого | F232: =SUM(F223:F231) -> 1314 | G232: =SUM(G223:G231) -> 28.18 | H232: 29.65 | I232: 122.53 | J232: 860.11 | L232: =SUM(L223:L231) -> 0
A233: =A215 -> 2 | B233: =B215 -> 6 | C233: Итого за день: | F233: =F222+F232 -> 1772 | G233: =G222+G232 -> 50.2 | H233: 60.04 | I233: 203.61 | J233: 1546.39 | L233: =L222+L232 -> 220.56
C234: Среднее значение за период: | F234: =(F24+F43+F62+F81+F100+F119+F138+F157+F176+F195+F214+F233)/(IF(F24=0,0,1)+IF(F43=0,0,1)+IF(F62=0,0,1)+IF(F81=0,0,1)+IF(F100=0,0,1)+IF(F119=0,0,1)+IF(F138=0,0,1)+IF(F157=0,0,1)+IF(F176=0,0,1)+IF(F195=0,0,1)+IF(F214=0,0,1)+IF(F233=0,0,1)) -> 1850.636364 | G234: =(G24+G43+G62+G81+G100+G119+G138+G157+G176+G195+G214+G233)/(IF(G24=0,0,1)+IF(G43=0,0,1)+IF(G62=0,0,1)+IF(G81=0,0,1)+IF(G100=0,0,1)+IF(G119=0,0,1)+IF(G138=0,0,1)+IF(G157=0,0,1)+IF(G176=0,0,1)+IF(G195=0,0,1)+IF(G214=0,0,1)+IF(G233=0,0,1)) -> 51.23090909 | H234: 56.86909091 | I234: =(I24+I43+I62+I81+I100+I119+I138+I157+I176+I195+I214+I233)/(IF(I24=0,0,1)+IF(I43=0,0,1)+IF(I62=0,0,1)+IF(I81=0,0,1)+IF(I100=0,0,1)+IF(I119=0,0,1)+IF(I138=0,0,1)+IF(I157=0,0,1)+IF(I176=0,0,1)+IF(I195=0,0,1)+IF(I214=0,0,1)+IF(I233=0,0,1)) -> 220.4872727 | J234: 1572.674545 | L234: 220.56
